[Event "*** Titled Tuesday Blitz"]
[Site "Chess.com"]
[Date "2020.10.20"]
[Round "8"]
[White "ChessWarrior7197"]
[Black "AndrewMaco"]
[Result "1/2-1/2"]
[WhiteElo "2984"]
[BlackElo "2627"]
[TimeControl "180+1"]
[EndTime "11:40:08 PDT"]
[Termination "Game drawn by agreement"]

1. c4 {[%clk 0:03:00.9]} 1... e5 {[%clk 0:02:58.3]} 2. d3 {[%clk 0:03:00.3]}
2... Nf6 {[%clk 0:02:58.3]} 3. Nf3 {[%clk 0:02:59.8]} 3... Nc6 {[%clk
0:02:57.5]} 4. a3 {[%clk 0:02:59.8]} 4... g6 {[%clk 0:02:56.4]} 5. g3 {[%clk
0:02:57.5]} 5... Bg7 {[%clk 0:02:56.7]} 6. Bg2 {[%clk 0:02:58]} 6... O-O {[%clk
0:02:57.4]} 7. O-O {[%clk 0:02:58.6]} 7... d5 {[%clk 0:02:58]} 8. cxd5 {[%clk
0:02:59.4]} 8... Nxd5 {[%clk 0:02:58.9]} 9. Bd2 {[%clk 0:02:57.1]} 9... Bg4
{[%clk 0:02:51.9]} 10. Nc3 {[%clk 0:02:56.8]} 10... Nxc3 {[%clk 0:02:47.5]} 11.
Bxc3 {[%clk 0:02:57.7]} 11... Nd4 {[%clk 0:02:46.9]} 12. Bxd4 {[%clk 0:02:41.5]}
12... exd4 {[%clk 0:02:46.1]} 13. h3 {[%clk 0:02:42.1]} 13... Bc8 {[%clk
0:02:41.7]} 14. b4 {[%clk 0:02:41.3]} 14... c6 {[%clk 0:02:36]} 15. Nd2 {[%clk
0:02:39.5]} 15... Re8 {[%clk 0:02:35.3]} 16. Ne4 {[%clk 0:02:39]} 16... Be6
{[%clk 0:02:33.5]} 17. Nc5 {[%clk 0:02:37.3]} 17... Bc8 {[%clk 0:02:33.2]} 18.
Re1 {[%clk 0:02:35.8]} 18... a5 {[%clk 0:02:23.4]} 19. Rb1 {[%clk 0:02:28.4]}
19... axb4 {[%clk 0:02:22.5]} 20. axb4 {[%clk 0:02:29.3]} 20... Ra2 {[%clk
0:02:04.8]} 21. Kh2 {[%clk 0:02:20.4]} 21... Bf8 {[%clk 0:01:55.1]} 22. Ne4
{[%clk 0:02:08.8]} 22... Kg7 {[%clk 0:01:50.2]} 23. b5 {[%clk 0:02:04.4]} 23...
c5 {[%clk 0:01:47]} 24. b6 {[%clk 0:02:02.4]} 24... Ra6 {[%clk 0:01:27.3]} 25.
Qc2 {[%clk 0:01:53.9]} 25... Rxb6 {[%clk 0:01:14.8]} 26. Bf3 {[%clk 0:01:44.2]}
26... Rxb1 {[%clk 0:01:11.2]} 27. Rxb1 {[%clk 0:01:45.1]} 27... Qd7 {[%clk
0:01:10.3]} 28. Nxc5 {[%clk 0:01:38.7]} 28... Qxh3+ {[%clk 0:01:05.6]} 29. Kg1
{[%clk 0:01:38.9]} 29... Bg4 {[%clk 0:01:03.1]} 30. Ne4 {[%clk 0:01:32.1]} 30...
Bxf3 {[%clk 0:00:49.8]} 31. exf3 {[%clk 0:01:33]} 31... Re7 {[%clk 0:00:44.2]}
32. Qc4 {[%clk 0:01:22.6]} 32... Qd7 {[%clk 0:00:42.5]} 33. Kg2 {[%clk 0:01:22]}
33... h6 {[%clk 0:00:42]} 34. Rb5 {[%clk 0:01:20.4]} 34... Kh8 {[%clk
0:00:21.3]} 35. Rd5 {[%clk 0:01:18.4]} 35... Qc6 {[%clk 0:00:21.7]} 36. Qxc6
{[%clk 0:01:04.3]} 36... bxc6 {[%clk 0:00:22.6]} 37. Rxd4 {[%clk 0:01:04.4]}
37... Re6 {[%clk 0:00:22.5]} 38. f4 {[%clk 0:01:03.1]} 38... Kg7 {[%clk
0:00:22.7]} 39. Kf3 {[%clk 0:01:03]} 39... f5 {[%clk 0:00:22.4]} 40. Nd2 {[%clk
0:01:00.5]} 40... Bc5 {[%clk 0:00:20.7]} 41. Rc4 {[%clk 0:00:59.2]} 41... Bb6
{[%clk 0:00:19.7]} 42. Rb4 {[%clk 0:00:51]} 42... Bc5 {[%clk 0:00:19.1]} 43. Rb3
{[%clk 0:00:50.9]} 43... Kf7 {[%clk 0:00:18.9]} 44. Nc4 {[%clk 0:00:51]} 44...
Bd4 {[%clk 0:00:19.4]} 45. Rb8 {[%clk 0:00:44.4]} 45... g5 {[%clk 0:00:19.1]}
46. Rc8 {[%clk 0:00:36.3]} 46... c5 {[%clk 0:00:19]} 47. fxg5 {[%clk 0:00:34]}
47... hxg5 {[%clk 0:00:19.9]} 48. Ra8 {[%clk 0:00:27.4]} 48... Kg6 {[%clk
0:00:19.3]} 49. Rg8+ {[%clk 0:00:25.8]} 49... Kh6 {[%clk 0:00:18.5]} 50. g4
{[%clk 0:00:24.3]} 50... fxg4+ {[%clk 0:00:16.9]} 51. Kxg4 {[%clk 0:00:25.2]}
51... Bxf2 {[%clk 0:00:15.4]} 52. Nd2 {[%clk 0:00:25]} 52... Be3 {[%clk
0:00:14.5]} 53. Ne4 {[%clk 0:00:22.4]} 53... c4 {[%clk 0:00:13.7]} 54. Kf5
{[%clk 0:00:22.9]} 54... Rc6 {[%clk 0:00:06.2]} 55. dxc4 {[%clk 0:00:20]} 55...
Rxc4 {[%clk 0:00:06.9]} 56. Nf6 {[%clk 0:00:20.2]} 56... Rc5+ {[%clk 0:00:07.2]}
57. Ke4 {[%clk 0:00:20.2]} 57... Bf4 {[%clk 0:00:06.8]} 58. Kf3 {[%clk
0:00:18.7]} 58... Rf5 {[%clk 0:00:06.5]} 59. Ng4+ {[%clk 0:00:18.8]} 59... Kh7
{[%clk 0:00:06.7]} 60. Ra8 {[%clk 0:00:19.7]} 60... Rf7 {[%clk 0:00:05.7]} 61.
Ke4 {[%clk 0:00:19.5]} 61... Kg7 {[%clk 0:00:05.9]} 62. Ra6 {[%clk 0:00:19]}
62... Re7+ {[%clk 0:00:06.3]} 63. Kf5 {[%clk 0:00:18.9]} 63... Rf7+ {[%clk
0:00:06.7]} 64. Nf6 {[%clk 0:00:19.4]} 64... Re7 {[%clk 0:00:05.8]} 65. Nh5+
{[%clk 0:00:19.4]} 65... Kf7 {[%clk 0:00:06.3]} 66. Rf6+ {[%clk 0:00:19.4]}
66... Ke8 {[%clk 0:00:06.7]} 67. Kg6 {[%clk 0:00:18.9]} 67... Kd7 {[%clk
0:00:06.9]} 68. Kf5 {[%clk 0:00:17.6]} 68... Re5+ {[%clk 0:00:06.7]} 69. Kg4
{[%clk 0:00:18]} 69... Re6 {[%clk 0:00:07]} 70. Rf7+ {[%clk 0:00:18.4]} 70...
Re7 {[%clk 0:00:07.5]} 71. Rf8 {[%clk 0:00:18.9]} 71... Ke6 {[%clk 0:00:07.6]}
72. Ra8 {[%clk 0:00:16.2]} 72... Kd5 {[%clk 0:00:07.8]} 73. Nf6+ {[%clk
0:00:15.9]} 73... Kc6 {[%clk 0:00:08.1]} 74. Ra6+ {[%clk 0:00:15.3]} 74... Kb7
{[%clk 0:00:07.7]} 75. Ra4 {[%clk 0:00:15.5]} 75... Re5 {[%clk 0:00:07]} 76. Nd7
{[%clk 0:00:14.5]} 76... Rd5 {[%clk 0:00:06.7]} 77. Nf6 {[%clk 0:00:14.3]} 77...
Re5 {[%clk 0:00:07]} 78. Rc4 {[%clk 0:00:14.5]} 78... Rb5 {[%clk 0:00:06.6]} 79.
Ne4 {[%clk 0:00:14.2]} 79... Re5 {[%clk 0:00:06.3]} 80. Nc5+ {[%clk 0:00:13.9]}
80... Ka7 {[%clk 0:00:06.3]} 81. Ra4+ {[%clk 0:00:13]} 81... Kb6 {[%clk
0:00:06.5]} 82. Nd7+ {[%clk 0:00:12.9]} 82... Kb5 {[%clk 0:00:07]} 83. Ra8
{[%clk 0:00:12.8]} 83... Re1 {[%clk 0:00:06.4]} 84. Kf5 {[%clk 0:00:12.9]} 84...
Rf1 {[%clk 0:00:05.8]} 85. Ke4 {[%clk 0:00:12.7]} 85... Re1+ {[%clk 0:00:06.1]}
86. Kf3 {[%clk 0:00:13.1]} 86... Rf1+ {[%clk 0:00:06.4]} 87. Ke2 {[%clk
0:00:13.4]} 87... Rc1 {[%clk 0:00:06.1]} 88. Nf6 {[%clk 0:00:13.4]} 88... Rc2+
{[%clk 0:00:06]} 89. Kd3 {[%clk 0:00:13.7]} 89... Rd2+ {[%clk 0:00:06.5]} 90.
Kc3 {[%clk 0:00:13.2]} 90... Rd1 {[%clk 0:00:06.8]} 91. Ne4 {[%clk 0:00:13.4]}
91... Rc1+ {[%clk 0:00:06.8]} 92. Kd3 {[%clk 0:00:12.7]} 92... Rd1+ {[%clk
0:00:07]} 93. Ke2 {[%clk 0:00:13.1]} 93... Rd4 {[%clk 0:00:07.2]} 94. Nc3+
{[%clk 0:00:11]} 94... Kc5 {[%clk 0:00:07.1]} 95. Rc8+ {[%clk 0:00:11.1]} 95...
Kb4 {[%clk 0:00:05.8]} 96. Nd1 {[%clk 0:00:06.4]} 96... g4 {[%clk 0:00:05.7]}
97. Rg8 {[%clk 0:00:04.3]} 97... g3 {[%clk 0:00:06]} 98. Kf3 {[%clk 0:00:03.9]}
98... Rxd1 {[%clk 0:00:05.7]} 99. Kxf4 {[%clk 0:00:04.3]} 99... Rf1+ {[%clk
0:00:05.9]} 100. Ke3 {[%clk 0:00:04.5]} 100... g2 {[%clk 0:00:05.9]} 101. Rxg2
{[%clk 0:00:04]} 101... Rc1 {[%clk 0:00:06.1]} 102. Rg4+ {[%clk 0:00:03.8]}
102... Rc4 {[%clk 0:00:05.5]} 103. Rg8 {[%clk 0:00:04.7]} 103... Rc3+ {[%clk
0:00:05.9]} 104. Kd4 {[%clk 0:00:05.1]} 104... Rc1 {[%clk 0:00:06]} 105. Rb8+
{[%clk 0:00:04.5]} 105... Ka3 {[%clk 0:00:06.3]} 106. Kd3 {[%clk 0:00:05.4]}
106... Rc7 {[%clk 0:00:05.6]} 1/2-1/2

[Event "*** Titled Tuesday Blitz"]
[Site "Chess.com"]
[Date "2020.10.20"]
[Round "9"]
[White "TrenerChos"]
[Black "ChessArchitect64"]
[Result "0-1"]
[WhiteElo "2162"]
[BlackElo "2061"]
[TimeControl "180+1"]
[EndTime "11:42:40 PDT"]
[Termination "ChessArchitect64 won by resignation"]

1. d4 {[%clk 0:03:00.9]} 1... d5 {[%clk 0:02:59.3]} 2. Nf3 {[%clk 0:03:00.9]}
2... c6 {[%clk 0:02:57.5]} 3. g3 {[%clk 0:03:00.5]} 3... Nf6 {[%clk 0:02:57.5]}
4. Bg2 {[%clk 0:02:58.7]} 4... Bf5 {[%clk 0:02:57.6]} 5. O-O {[%clk 0:02:56.3]}
5... e6 {[%clk 0:02:56.9]} 6. c4 {[%clk 0:02:55]} 6... Be7 {[%clk 0:02:54.8]} 7.
Nc3 {[%clk 0:02:48.6]} 7... Nbd7 {[%clk 0:02:54.6]} 8. Re1 {[%clk 0:02:45.6]}
8... O-O {[%clk 0:02:53.2]} 9. Nd2 {[%clk 0:02:45.1]} 9... Re8 {[%clk
0:02:48.6]} 10. e4 {[%clk 0:02:44.8]} 10... dxe4 {[%clk 0:02:45.8]} 11. Ndxe4
{[%clk 0:02:45.6]} 11... Nxe4 {[%clk 0:02:44.4]} 12. Nxe4 {[%clk 0:02:46.3]}
12... Bxe4 {[%clk 0:02:43.5]} 13. Bxe4 {[%clk 0:02:47.2]} 13... Nf6 {[%clk
0:02:43.3]} 14. Bg2 {[%clk 0:02:43.1]} 14... Bf8 {[%clk 0:02:36.9]} 15. Be3
{[%clk 0:02:40.3]} 15... Qb8 {[%clk 0:02:26.2]} 16. Qb3 {[%clk 0:02:33.1]} 16...
Qc7 {[%clk 0:02:22.7]} 17. Rac1 {[%clk 0:02:31.3]} 17... Qb6 {[%clk 0:02:19.2]}
18. Qb4 {[%clk 0:02:30.3]} 18... Bxb4 {[%clk 0:02:16.6]} 0-1

[Event "*** Titled Tuesday Blitz"]
[Site "Chess.com"]
[Date "2020.10.20"]
[Round "9"]
[White "brunomorado"]
[Black "romulocardoso"]
[Result "1-0"]
[WhiteElo "2315"]
[BlackElo "2111"]
[TimeControl "180+1"]
[EndTime "11:43:10 PDT"]
[Termination "brunomorado won by checkmate"]

1. d4 {[%clk 0:03:00]} 1... Nf6 {[%clk 0:02:58.9]} 2. Nc3 {[%clk 0:02:59.9]}
2... e6 {[%clk 0:02:59.4]} 3. e4 {[%clk 0:02:59.9]} 3... d5 {[%clk 0:02:59.4]}
4. Bg5 {[%clk 0:03:00.6]} 4... dxe4 {[%clk 0:02:57.8]} 5. Nxe4 {[%clk
0:03:01.5]} 5... Be7 {[%clk 0:02:57.8]} 6. Bxf6 {[%clk 0:03:02.2]} 6... Bxf6
{[%clk 0:02:58.7]} 7. Ne2 {[%clk 0:03:02.8]} 7... O-O {[%clk 0:02:57.8]} 8. g3
{[%clk 0:03:03.3]} 8... b6 {[%clk 0:02:58]} 9. Bg2 {[%clk 0:03:03.8]} 9... Bb7
{[%clk 0:02:58.4]} 10. Nxf6+ {[%clk 0:03:03.9]} 10... Qxf6 {[%clk 0:02:58.4]}
11. Bxb7 {[%clk 0:03:04.8]} 11... Nd7 {[%clk 0:02:58.3]} 12. Bxa8 {[%clk
0:03:04.9]} 12... Rxa8 {[%clk 0:02:58.6]} 13. O-O {[%clk 0:03:05]} 13... c5
{[%clk 0:02:58.6]} 14. dxc5 {[%clk 0:03:02.9]} 14... Nxc5 {[%clk 0:02:59.5]} 15.
Qd4 {[%clk 0:03:03]} 15... e5 {[%clk 0:02:59.5]} 16. Qc4 {[%clk 0:02:57.5]}
16... Qf3 {[%clk 0:02:53.8]} 17. Nc3 {[%clk 0:02:55.1]} 17... Ne6 {[%clk
0:02:46.1]} 18. Qd5 {[%clk 0:02:54.1]} 18... Qg4 {[%clk 0:02:41.1]} 19. Qxa8+
{[%clk 0:02:53]} 19... Nf8 {[%clk 0:02:41.6]} 20. Qe4 {[%clk 0:02:52.7]} 20...
Qe6 {[%clk 0:02:39.7]} 21. Rad1 {[%clk 0:02:50.6]} 21... g6 {[%clk 0:02:37.2]}
22. Rd8 {[%clk 0:02:50.2]} 22... Kg7 {[%clk 0:02:36.7]} 23. Rfd1 {[%clk
0:02:48.7]} 23... h6 {[%clk 0:02:34.4]} 24. Qb4 {[%clk 0:02:46.7]} 24... Nh7
{[%clk 0:02:33]} 25. R1d7 {[%clk 0:02:39.9]} 25... Ng5 {[%clk 0:02:30.7]} 26.
Qb3 {[%clk 0:02:27.7]} 26... Qh3 {[%clk 0:02:19.6]} 27. Qd5 {[%clk 0:02:27.2]}
27... e4 {[%clk 0:02:13.4]} 28. Qe5+ {[%clk 0:02:24.6]} 28... Kh7 {[%clk
0:02:09.7]} 29. Rh8# {[%clk 0:02:24.8]} 1-0

[Event "*** Titled Tuesday Blitz"]
[Site "Chess.com"]
[Date "2020.10.20"]
[Round "9"]
[White "annamaja"]
[Black "MidnightFox"]
[Result "1-0"]
[WhiteElo "2307"]
[BlackElo "2419"]
[TimeControl "180+1"]
[EndTime "11:43:28 PDT"]
[Termination "annamaja won by resignation"]

1. e4 {[%clk 0:03:00.9]} 1... e5 {[%clk 0:02:59.3]} 2. Nf3 {[%clk 0:03:00.9]}
2... Nc6 {[%clk 0:02:56.9]} 3. Bc4 {[%clk 0:03:00.2]} 3... Bc5 {[%clk
0:02:54.2]} 4. d3 {[%clk 0:03:00.4]} 4... Nf6 {[%clk 0:02:52.2]} 5. O-O {[%clk
0:03:00.3]} 5... O-O {[%clk 0:02:49.9]} 6. c3 {[%clk 0:03:00]} 6... d6 {[%clk
0:02:40.3]} 7. Bg5 {[%clk 0:02:58.1]} 7... h6 {[%clk 0:02:39.3]} 8. Bh4 {[%clk
0:02:58]} 8... Bb6 {[%clk 0:02:35.4]} 9. Nbd2 {[%clk 0:02:56.2]} 9... Qe7 {[%clk
0:02:32.6]} 10. h3 {[%clk 0:02:54.5]} 10... Nd8 {[%clk 0:02:26.9]} 11. Bb3
{[%clk 0:02:52.2]} 11... Ne6 {[%clk 0:02:25]} 12. Nc4 {[%clk 0:02:50.7]} 12...
Nf4 {[%clk 0:02:24.3]} 13. Ne3 {[%clk 0:02:46.8]} 13... c6 {[%clk 0:02:18.7]}
14. Re1 {[%clk 0:02:31.7]} 14... Ng6 {[%clk 0:02:17]} 15. Bg3 {[%clk 0:02:29]}
15... Nh5 {[%clk 0:02:07.6]} 16. Bh2 {[%clk 0:02:28.9]} 16... Nhf4 {[%clk
0:02:06.4]} 17. d4 {[%clk 0:02:24.8]} 17... Bd7 {[%clk 0:01:58.4]} 18. Nf5
{[%clk 0:02:19.7]} 18... Bxf5 {[%clk 0:01:44.4]} 19. exf5 {[%clk 0:02:20.6]}
19... Nh4 {[%clk 0:01:38.6]} 20. Bxf4 {[%clk 0:02:20.7]} 1-0

[Event "*** Titled Tuesday Blitz"]
[Site "Chess.com"]
[Date "2020.10.20"]
[Round "9"]
[White "DenisQ"]
[Black "TigrVShlyape"]
[Result "0-1"]
[WhiteElo "2672"]
[BlackElo "2862"]
[TimeControl "180+1"]
[EndTime "11:43:59 PDT"]
[Termination "TigrVShlyape won by resignation"]

1. Nf3 {[%clk 0:03:00.9]} 1... Nf6 {[%clk 0:02:58.6]} 2. c4 {[%clk 0:02:59.7]}
2... g6 {[%clk 0:02:58.2]} 3. Nc3 {[%clk 0:02:59.1]} 3... Bg7 {[%clk 0:02:58.8]}
4. g3 {[%clk 0:02:59]} 4... d6 {[%clk 0:02:59.3]} 5. Bg2 {[%clk 0:02:59.4]} 5...
O-O {[%clk 0:02:59.8]} 6. O-O {[%clk 0:02:59.9]} 6... Nc6 {[%clk 0:02:59.2]} 7.
Rb1 {[%clk 0:02:59.7]} 7... a5 {[%clk 0:02:59.5]} 8. a3 {[%clk 0:02:58.9]} 8...
e5 {[%clk 0:02:58.1]} 9. b4 {[%clk 0:02:58.8]} 9... axb4 {[%clk 0:02:54.5]} 10.
axb4 {[%clk 0:02:59.7]} 10... Bf5 {[%clk 0:02:54.1]} 11. d3 {[%clk 0:02:58.7]}
11... Qd7 {[%clk 0:02:53.5]} 12. b5 {[%clk 0:02:55.4]} 12... Nd8 {[%clk
0:02:53.5]} 13. Bg5 {[%clk 0:02:52.6]} 13... Ne6 {[%clk 0:02:39.1]} 14. Bxf6
{[%clk 0:02:51.2]} 14... Bxf6 {[%clk 0:02:38.5]} 15. Qd2 {[%clk 0:02:45.1]}
15... Nc5 {[%clk 0:02:33.8]} 16. Ng5 {[%clk 0:02:36.7]} 16... Bxg5 {[%clk
0:02:09.8]} 17. Qxg5 {[%clk 0:02:35.8]} 17... Be6 {[%clk 0:02:01.3]} 18. Ne4
{[%clk 0:02:30]} 18... Nxe4 {[%clk 0:01:59.9]} 19. Bxe4 {[%clk 0:02:30.9]} 19...
c6 {[%clk 0:01:55.4]} 20. bxc6 {[%clk 0:02:30.2]} 20... bxc6 {[%clk 0:01:55]}
21. Rb6 {[%clk 0:02:29.1]} 21... d5 {[%clk 0:01:53.9]} 22. cxd5 {[%clk
0:02:28.8]} 22... cxd5 {[%clk 0:01:53.5]} 23. Bf3 {[%clk 0:02:28.8]} 23... Qc7
{[%clk 0:01:52.4]} 24. Rfb1 {[%clk 0:02:27.6]} 24... Rfb8 {[%clk 0:01:46.9]} 25.
Rxb8+ {[%clk 0:02:23.3]} 25... Rxb8 {[%clk 0:01:46.9]} 26. Rxb8+ {[%clk
0:02:23.7]} 26... Qxb8 {[%clk 0:01:46.9]} 27. Qf6 {[%clk 0:02:22.6]} 27... Bh3
{[%clk 0:01:43.1]} 0-1

[Event "*** Titled Tuesday Blitz"]
[Site "Chess.com"]
[Date "2020.10.20"]
[Round "9"]
[White "FMalexhdez"]
[Black "SchieberSpieler"]
[Result "1-0"]
[WhiteElo "2295"]
[BlackElo "2418"]
[TimeControl "180+1"]
[EndTime "11:44:10 PDT"]
[Termination "FMalexhdez won by resignation"]

1. e4 {[%clk 0:03:00.9]} 1... e6 {[%clk 0:02:59.8]} 2. d4 {[%clk 0:03:00.4]}
2... d5 {[%clk 0:03:00.5]} 3. Nc3 {[%clk 0:03:00.7]} 3... Nf6 {[%clk 0:03:00.4]}
4. e5 {[%clk 0:03:01.3]} 4... Nfd7 {[%clk 0:03:00.7]} 5. f4 {[%clk 0:03:02]}
5... c5 {[%clk 0:03:01.4]} 6. Nf3 {[%clk 0:03:02.4]} 6... Nc6 {[%clk 0:03:02.1]}
7. Ne2 {[%clk 0:03:02.7]} 7... b5 {[%clk 0:02:43.8]} 8. c3 {[%clk 0:02:57.6]}
8... a5 {[%clk 0:02:37]} 9. f5 {[%clk 0:02:57.7]} 9... b4 {[%clk 0:02:25.4]} 10.
Nf4 {[%clk 0:02:52.4]} 10... Nb6 {[%clk 0:02:25.2]} 11. fxe6 {[%clk 0:02:45.2]}
11... Bxe6 {[%clk 0:02:20.2]} 12. Bb5 {[%clk 0:02:43.1]} 12... Rc8 {[%clk
0:02:18.5]} 13. dxc5 {[%clk 0:02:28.9]} 13... Bxc5 {[%clk 0:02:17.9]} 14. Nd4
{[%clk 0:02:26.2]} 14... Bd7 {[%clk 0:02:08.8]} 15. e6 {[%clk 0:02:15]} 15...
fxe6 {[%clk 0:01:49.4]} 16. Qh5+ {[%clk 0:02:13.9]} 16... Ke7 {[%clk 0:01:34.7]}
17. Bxc6 {[%clk 0:01:45.1]} 17... Bxc6 {[%clk 0:01:34.4]} 18. Nfxe6 {[%clk
0:01:42.5]} 18... Qd6 {[%clk 0:01:34.4]} 19. Bg5+ {[%clk 0:01:39.5]} 19... Kd7
{[%clk 0:01:32.3]} 20. Qf7+ {[%clk 0:01:36.5]} 1-0

[Event "*** Titled Tuesday Blitz"]
[Site "Chess.com"]
[Date "2020.10.20"]
[Round "9"]
[White "Natalya_Buksa"]
[Black "margarita_2703"]
[Result "1-0"]
[WhiteElo "2555"]
[BlackElo "2407"]
[TimeControl "180+1"]
[EndTime "11:44:20 PDT"]
[Termination "Natalya_Buksa won by resignation"]

1. d4 {[%clk 0:03:00.9]} 1... Nf6 {[%clk 0:02:59.2]} 2. Nc3 {[%clk 0:03:01.3]}
2... d5 {[%clk 0:02:58.2]} 3. Bf4 {[%clk 0:03:01.3]} 3... c6 {[%clk 0:02:46.3]}
4. e3 {[%clk 0:02:59.8]} 4... Bf5 {[%clk 0:02:43.8]} 5. Nf3 {[%clk 0:03:00.2]}
5... Nbd7 {[%clk 0:02:43.4]} 6. Ne5 {[%clk 0:03:00.6]} 6... e6 {[%clk
0:02:43.4]} 7. g4 {[%clk 0:03:01.1]} 7... Bg6 {[%clk 0:02:38.5]} 8. h4 {[%clk
0:03:01.4]} 8... h5 {[%clk 0:02:26.4]} 9. Nxg6 {[%clk 0:03:00.6]} 9... fxg6
{[%clk 0:02:26.1]} 10. Bd3 {[%clk 0:03:01.2]} 10... Bb4 {[%clk 0:02:22.8]} 11.
Bxg6+ {[%clk 0:03:00]} 11... Kf8 {[%clk 0:02:23.2]} 12. g5 {[%clk 0:02:55.1]}
12... Ne4 {[%clk 0:02:22.8]} 13. Qf3 {[%clk 0:02:47.7]} 13... Bxc3+ {[%clk
0:02:11.1]} 14. bxc3 {[%clk 0:02:46.5]} 14... Kg8 {[%clk 0:02:10.3]} 15. Bxe4
{[%clk 0:02:44.7]} 15... dxe4 {[%clk 0:02:09.4]} 16. Qxe4 {[%clk 0:02:45.6]}
16... Qe7 {[%clk 0:02:08.8]} 17. Bg3 {[%clk 0:02:38.3]} 17... Rf8 {[%clk
0:02:04.7]} 18. Rb1 {[%clk 0:02:25]} 18... Nb6 {[%clk 0:02:04.3]} 19. Qe5 {[%clk
0:02:20.3]} 19... Nc4 {[%clk 0:01:59.1]} 20. Qc7 {[%clk 0:02:17.8]} 20... Qxc7
{[%clk 0:01:53.9]} 21. Bxc7 {[%clk 0:02:18.1]} 21... b5 {[%clk 0:01:53.6]} 22.
Ke2 {[%clk 0:02:14.7]} 22... Rf7 {[%clk 0:01:51.9]} 23. Bg3 {[%clk 0:02:13]}
23... Kh7 {[%clk 0:01:48]} 24. e4 {[%clk 0:02:13.2]} 24... Rhf8 {[%clk
0:01:45.9]} 25. f4 {[%clk 0:02:13.3]} 25... a5 {[%clk 0:01:41.3]} 26. Rhf1
{[%clk 0:02:12.6]} 26... g6 {[%clk 0:01:39.9]} 27. Rf3 {[%clk 0:02:04.6]} 27...
Nd6 {[%clk 0:01:37.8]} 28. Kd3 {[%clk 0:02:03.4]} 28... Rc8 {[%clk 0:01:35.2]}
29. f5 {[%clk 0:02:00.8]} 29... exf5 {[%clk 0:01:30.4]} 30. Bxd6 {[%clk
0:02:00.8]} 30... fxe4+ {[%clk 0:01:30.3]} 31. Kxe4 {[%clk 0:02:01.3]} 31...
Re8+ {[%clk 0:01:30.3]} 32. Be5 {[%clk 0:02:01.8]} 1-0

[Event "*** Titled Tuesday Blitz"]
[Site "Chess.com"]
[Date "2020.10.20"]
[Round "9"]
[White "Teo2000"]
[Black "DinaBelenkaya"]
[Result "0-1"]
[WhiteElo "2430"]
[BlackElo "2307"]
[TimeControl "180+1"]
[EndTime "11:44:30 PDT"]
[Termination "DinaBelenkaya won by resignation"]

1. e4 {[%clk 0:03:00.9]} 1... d5 {[%clk 0:02:47.6]} 2. exd5 {[%clk 0:03:00.7]}
2... Qxd5 {[%clk 0:02:47.3]} 3. Nc3 {[%clk 0:02:58.1]} 3... Qa5 {[%clk
0:02:46.9]} 4. d4 {[%clk 0:02:57.8]} 4... Nf6 {[%clk 0:02:45.9]} 5. Bc4 {[%clk
0:02:58.3]} 5... c6 {[%clk 0:02:44.6]} 6. Ne2 {[%clk 0:02:57.4]} 6... Bf5 {[%clk
0:02:43.2]} 7. Be3 {[%clk 0:02:56.7]} 7... e6 {[%clk 0:02:43]} 8. Qd2 {[%clk
0:02:57.1]} 8... Nbd7 {[%clk 0:02:39.6]} 9. O-O-O {[%clk 0:02:57.4]} 9... Bb4
{[%clk 0:02:37.3]} 10. f3 {[%clk 0:02:52.9]} 10... b5 {[%clk 0:02:35.1]} 11. Bb3
{[%clk 0:02:52.7]} 11... Nb6 {[%clk 0:02:31.7]} 12. Kb1 {[%clk 0:02:52]} 12...
Nc4 {[%clk 0:02:29.5]} 13. Bxc4 {[%clk 0:02:51.5]} 13... bxc4 {[%clk 0:02:30.4]}
14. g4 {[%clk 0:02:46.3]} 14... Bg6 {[%clk 0:02:29.5]} 15. h4 {[%clk 0:02:34.6]}
15... h5 {[%clk 0:02:29.2]} 16. Nf4 {[%clk 0:02:33.1]} 16... Rb8 {[%clk
0:02:26.2]} 17. Ka1 {[%clk 0:02:30.2]} 17... Nd5 {[%clk 0:02:23.1]} 18. Nfxd5
{[%clk 0:02:22.6]} 18... cxd5 {[%clk 0:02:23.9]} 19. Bf4 {[%clk 0:02:22.5]}
19... Rb6 {[%clk 0:02:22.8]} 20. Bc7 {[%clk 0:02:21.3]} 20... Kd7 {[%clk
0:02:22.8]} 21. Bxb6 {[%clk 0:02:19.2]} 21... axb6 {[%clk 0:02:23.7]} 22. a3
{[%clk 0:02:19.8]} 22... Ra8 {[%clk 0:02:09.5]} 23. Qc1 {[%clk 0:02:12]} 23...
Bxc3 {[%clk 0:02:08.5]} 24. bxc3 {[%clk 0:02:12.9]} 24... Qxc3+ {[%clk
0:02:08.7]} 25. Qb2 {[%clk 0:02:13.6]} 25... Rxa3+ {[%clk 0:02:08]} 26. Kb1
{[%clk 0:02:14.3]} 26... Qa5 {[%clk 0:02:06.1]} 27. Kc1 {[%clk 0:02:08]} 27...
Ra1+ {[%clk 0:01:55.2]} 28. Qxa1 {[%clk 0:02:02.5]} 28... Qxa1+ {[%clk
0:01:55.7]} 29. Kd2 {[%clk 0:02:03.4]} 29... Qb2 {[%clk 0:01:52.3]} 30. Rc1
{[%clk 0:02:03.2]} 30... c3+ {[%clk 0:01:51.5]} 31. Ke3 {[%clk 0:02:03.6]} 31...
Bxc2 {[%clk 0:01:49.6]} 32. gxh5 {[%clk 0:02:03.3]} 32... b5 {[%clk 0:01:48.3]}
33. Rcg1 {[%clk 0:01:56.6]} 33... Bd3 {[%clk 0:01:42.1]} 0-1

[Event "*** Titled Tuesday Blitz"]
[Site "Chess.com"]
[Date "2020.10.20"]
[Round "9"]
[White "Letinac"]
[Black "Evachess2006"]
[Result "1-0"]
[WhiteElo "2006"]
[BlackElo "1629"]
[TimeControl "180+1"]
[EndTime "11:44:31 PDT"]
[Termination "Letinac won by resignation"]

1. Nf3 {[%clk 0:02:59.1]} 1... Nc6 {[%clk 0:02:52.4]} 2. d4 {[%clk 0:02:58.5]}
2... d5 {[%clk 0:02:53.3]} 3. c4 {[%clk 0:02:58.1]} 3... dxc4 {[%clk 0:02:52.6]}
4. e3 {[%clk 0:02:57.5]} 4... Bf5 {[%clk 0:02:52.1]} 5. Bxc4 {[%clk 0:02:56.8]}
5... e6 {[%clk 0:02:44.1]} 6. O-O {[%clk 0:02:55.7]} 6... Bb4 {[%clk 0:02:44.6]}
7. Bb5 {[%clk 0:02:51.6]} 7... Nf6 {[%clk 0:02:44.4]} 8. Qa4 {[%clk 0:02:49.3]}
8... Qd6 {[%clk 0:01:53.3]} 9. Ne5 {[%clk 0:02:39.9]} 9... Nd7 {[%clk
0:01:09.8]} 10. Nxc6 {[%clk 0:02:32.6]} 10... bxc6 {[%clk 0:01:05.1]} 11. Bxc6
{[%clk 0:02:29.8]} 11... Rd8 {[%clk 0:00:59.3]} 12. Nc3 {[%clk 0:02:16.5]} 12...
Bxc3 {[%clk 0:00:53.3]} 13. bxc3 {[%clk 0:02:15.3]} 13... O-O {[%clk 0:00:51.4]}
14. Ba3 {[%clk 0:02:14]} 14... Nb6 {[%clk 0:00:42.7]} 15. Bxd6 {[%clk
0:02:09.1]} 15... Nxa4 {[%clk 0:00:39.8]} 16. Bxf8 {[%clk 0:02:08.1]} 1-0